bitfinex/quotes_BTCUSD_20250623
["timestamp","ask_amount","ask_price","bid_price","bid_amount"]
[1750711634165,0.40171348,104030.0,104020.0,0.28115878]
[1750711634422,0.40171348,104030.0,104020.0,0.06966128]
[1750711634918,0.40171348,104030.0,104020.0,0.06957271]
[1750711635808,0.40171348,104030.0,104020.0,0.03787271]
[1750711636032,0.81593455,104030.0,104020.0,0.03787271]
[1750711636256,0.84733455,104030.0,104020.0,0.00587271]
[1750711636478,0.87863455,104030.0,104020.0,0.003]
[1750711636705,6.21101479,104030.0,104020.0,0.003]
[1750711636931,6.21101479,104030.0,104020.0,0.004]
[1750711637147,6.21101479,104030.0,104020.0,0.00391163]
[1750711637362,6.21101479,104030.0,104020.0,0.00491163]
[1750711638268,6.21101479,104030.0,104020.0,0.002]
[1750711638481,6.21101479,104030.0,104020.0,0.004]
[1750711639025,6.21101479,104030.0,104020.0,0.002]
[1750711639279,0.34,104020.0,104010.0,0.0002]
[1750711639521,0.75422107,104020.0,104010.0,0.0002]
[1750711640661,6.0188607,104020.0,104010.0,0.0012]
[1750711640869,5.98326131,104020.0,104010.0,0.0012]
[1750711641296,6.00628048,104020.0,104010.0,0.0012]
[1750711641518,6.00628048,104020.0,104010.0,0.0032]
[1750711641982,6.00628048,104020.0,104010.0,0.0012]
[1750711642194,6.00628048,104020.0,104010.0,0.0002]
[1750711642419,6.00728048,104020.0,104010.0,0.0002]
[1750711642674,5.0495,104010.0,103990.0,0.35888616]
[1750711642882,5.63172107,104010.0,103990.0,0.38898616]
[1750711643104,0.58222107,104010.0,103990.0,0.38898616]
[1750711643325,0.58222107,104010.0,103990.0,0.1397252]
[1750711643555,0.58222107,104010.0,103990.0,0.2647416]
[1750711643803,0.58222107,104010.0,103990.0,0.25512539]
[1750711644014,0.58222107,104010.0,103990.0,0.26474169]
[1750711644236,0.58222107,104010.0,103990.0,0.0628]
[1750711644711,0.61392107,104010.0,103990.0,0.0628]
[1750711644949,0.1997,104010.0,103990.0,0.0724163]
[1750711645177,0.61392107,104010.0,103990.0,0.26474142]
[1750711645465,0.71422046,104010.0,103990.0,0.0628]
[1750711645917,0.71422046,104010.0,103990.0,0.0327]
[1750711645918,0.41422107,104000.0,103990.0,0.0327]
[1750711646210,0.41422107,104000.0,103980.0,0.27531297]
[1750711646518,5.0495,104000.0,103990.0,0.23434164]
[1750711646791,5.0495,104000.0,103990.0,0.0638]
[1750711647141,5.0495,104000.0,103990.0,0.26574239]
[1750711647435,5.0495,104000.0,103990.0,0.26674248]
[1750711647655,0.02902055,104000.0,103990.0,0.2783586]
[1750711647871,0.02902055,104000.0,103990.0,0.26874248]
[1750711648088,5.0495,104000.0,103990.0,0.28797472]
[1750711648307,0.41422107,104000.0,103990.0,0.0347]
[1750711648725,0.61342107,104010.0,103990.0,0.0347]
[1750711648939,5.0495,104000.0,103990.0,0.0443163]
[1750711649149,5.0495,104000.0,103990.0,0.0347]
[1750711650115,5.0495,104000.0,103990.0,0.0327]
[1750711651260,5.0495,104000.0,103990.0,0.0347]
[1750711651901,0.02878087,104000.0,103990.0,0.0347]
[1750711652132,0.44300194,104000.0,103990.0,0.0347]
[1750711652351,0.41422107,104000.0,103990.0,0.0347]
[1750711652819,0.41422107,104000.0,103990.0,0.003]
[1750711653034,0.75422107,104000.0,103990.0,0.003]
[1750711653249,0.85452046,104000.0,103990.0,0.003]
[1750711653499,0.44029939,104000.0,103990.0,0.003]
[1750711653710,0.85452046,104000.0,103990.0,0.003]
[1750711655028,0.91962046,104000.0,103990.0,0.003]
[1750711655685,5.96912046,104000.0,103990.0,0.003]
[1750711656103,5.98366131,104000.0,103990.0,0.003]
[1750711656544,6.03366131,104000.0,103990.0,0.003]
[1750711656759,6.06187757,104000.0,103990.0,0.003]
[1750711657904,6.02867757,104000.0,103990.0,0.003]
[1750711659388,5.56801565,104000.0,103990.0,0.003]
[1750711659598,5.73577565,104000.0,103990.0,0.0335]
[1750711660050,5.73577565,104000.0,103990.0,0.003]
[1750711661177,5.73577565,104000.0,103990.0,0.0358]
[1750711661604,5.73577565,104000.0,103990.0,0.003]
[1750711663371,6.14999672,104000.0,103990.0,0.003]
[1750711665110,5.73577565,104000.0,103990.0,0.003]
[1750711665353,6.14999672,104000.0,103990.0,0.003]
[1750711666243,5.73577565,104000.0,103990.0,0.003]
[1750711666466,6.14999672,104000.0,103990.0,0.003]
[1750711667552,6.14987672,104000.0,103990.0,0.003]
[1750711667783,5.83595504,104000.0,103990.0,0.003]
[1750711668012,6.35346947,104000.0,103990.0,0.003]
[1750711668266,6.382207,104000.0,103990.0,0.003]
[1750711668511,6.52866076,104000.0,103990.0,0.003]
[1750711668745,6.45627776,104000.0,103990.0,0.003]
[1750711669004,5.12974085,103980.0,103970.0,0.0002]
[1750711669237,6.24917489,103980.0,103970.0,0.0002]
[1750711669463,6.34947428,103980.0,103970.0,0.0002]
[1750711670145,6.24917489,103980.0,103970.0,0.0002]
[1750711670360,6.24917489,103980.0,103970.0,0.00033788]
[1750711670854,6.20377614,103980.0,103970.0,0.00033788]
[1750711671995,6.17495382,103980.0,103970.0,0.00033788]
[1750711673303,6.58917489,103980.0,103970.0,0.00033788]
[1750711673524,6.17495382,103980.0,103970.0,0.00033788]
[1750711673741,6.00731382,103980.0,103970.0,0.00033788]
[1750711673968,6.20951321,103980.0,103970.0,0.00033788]
[1750711674200,6.65543428,103980.0,103970.0,0.00033788]
[1750711674429,6.27421321,103980.0,103970.0,0.00033788]
[1750711675547,6.58813489,103980.0,103970.0,0.00033788]
[1750711678042,5.75969275,103980.0,103970.0,0.00033788]
[1750711678302,6.58813489,103980.0,103970.0,0.00033788]
[1750711678538,5.75969275,103980.0,103970.0,0.00033788]
[1750711678771,6.58813489,103980.0,103970.0,0.00033788]
[1750711678984,6.17391382,103980.0,103970.0,0.00033788]
[1750711679203,6.58813489,103980.0,103970.0,0.00033788]
[1750711679422,6.68843428,103980.0,103970.0,0.00033788]
[1750711679882,5.75969275,103980.0,103970.0,0.00033788]
[1750711680097,6.58405789,103980.0,103970.0,0.00033788]
[1750711680310,6.61705789,103980.0,103970.0,0.00033788]
[1750711681446,6.66805782,103980.0,103970.0,0.00033788]
[1750711681646,6.69688014,103980.0,103970.0,0.00033788]
[1750711681891,6.79717953,103980.0,103970.0,0.00033788]
[1750711682112,0.4018,103970.0,103960.0,0.1]
[1750711682345,6.18522703,103970.0,103960.0,0.1]
[1750711682803,6.18518703,103970.0,103960.0,0.1]
[1750711683017,6.15643297,103970.0,103960.0,0.1]
[1750711683240,6.15843297,103970.0,103960.0,0.1]
[1750711683674,6.18718703,103970.0,103960.0,0.0998231]
[1750711683881,6.16043297,103970.0,103960.0,0.0998231]
[1750711684110,6.28948642,103970.0,103960.0,0.0998231]
[1750711684339,6.18918703,103970.0,103960.0,0.0998231]
[1750711688985,5.77496596,103970.0,103960.0,0.0998231]
[1750711689191,6.18918703,103970.0,103960.0,0.0998231]
[1750711689406,5.77496596,103970.0,103960.0,0.0998231]
[1750711689622,6.18918703,103970.0,103960.0,0.0998231]
[1750711690050,6.28948642,103970.0,103960.0,0.0998231]
[1750711690773,6.18918703,103970.0,103960.0,0.0998231]
[1750711691851,5.77496596,103970.0,103960.0,0.0998231]
[1750711692061,6.15908703,103970.0,103960.0,0.0998231]
[1750711692260,5.71316596,103970.0,103960.0,0.0998231]
[1750711692474,6.12738703,103970.0,103960.0,0.0998231]
[1750711693551,6.15768703,103970.0,103960.0,0.0998231]
[1750711694019,6.16442803,103970.0,103960.0,0.0998231]
[1750711694226,6.15768703,103970.0,103960.0,0.0998231]
[1750711694867,6.12738703,103970.0,103960.0,0.0998231]
[1750711695535,6.16578564,103970.0,103960.0,0.0998231]
[1750711695759,6.16578564,103970.0,103960.0,0.1634231]
[1750711695760,5.54560596,103970.0,103960.0,0.1634231]
[1750711695985,6.09859297,103970.0,103960.0,0.1634231]
[1750711697609,0.02705251,103970.0,103960.0,0.1634231]
[1750711697840,0.44127358,103970.0,103960.0,0.1634231]
[1750711698152,0.41822107,103970.0,103960.0,0.1634231]
[1750711701414,0.004,103970.0,103960.0,0.1634231]
[1750711701655,0.41822107,103970.0,103960.0,0.1634231]
[1750711704108,5.69404652,103970.0,103960.0,0.1321231]
[1750711704333,5.60561315,103970.0,103960.0,0.1321231]
[1750711705201,5.60561315,103970.0,103960.0,0.0998231]
[1750711705904,5.19139208,103970.0,103960.0,0.0998231]
[1750711706141,5.19139208,103970.0,103960.0,0.1637231]
[1750711706379,0.86705184,103970.0,103960.0,0.1637231]
[1750711706608,0.344,103970.0,103960.0,0.1637231]
[1750711707311,0.004,103970.0,103960.0,0.1637231]
[1750711707550,0.85852046,103970.0,103960.0,0.1317231]
[1750711707776,5.92256131,103970.0,103960.0,0.1317231]
[1750711708666,6.11774924,103970.0,103960.0,0.1317231]
[1750711708887,5.53138953,103970.0,103960.0,0.1317231]
[1750711709113,6.1132906,103970.0,103960.0,0.1637231]
[1750711709368,6.09874975,103970.0,103960.0,0.1637231]
[1750711709593,6.07570046,103970.0,103960.0,0.1637231]
[1750711710030,0.5116,103970.0,103960.0,0.36572367]
[1750711710243,0.75822107,103970.0,103960.0,0.36572386]
[1750711710464,0.75822107,103970.0,103960.0,0.37534285]
[1750711710898,0.75822107,103970.0,103960.0,0.38496165]
[1750711711333,0.75822107,103970.0,103960.0,0.35610478]
[1750711711727,0.75822107,103970.0,103960.0,0.36572367]
[1750711712004,0.004,103970.0,103960.0,0.46196173]
[1750711712238,0.004,103970.0,103960.0,0.60914112]
[1750711712474,0.004,103970.0,103960.0,1.02336219]
[1750711712708,0.00013798,103980.0,103970.0,0.28291653]
[1750711712927,0.00013798,103980.0,103970.0,0.38321592]
[1750711714261,0.00013798,103980.0,103970.0,0.38521592]
[1750711714712,0.00013798,103980.0,103970.0,0.38921592]
[1750711718056,0.00013798,103980.0,103970.0,0.80343699]
[1750711718257,0.00013798,103980.0,103970.0,1.09963699]
[1750711719780,0.00013798,103980.0,103970.0,1.11115782]
[1750711724375,0.00013798,103980.0,103970.0,0.69693675]
[1750711724601,0.00013798,103980.0,103970.0,0.57213675]
[1750711725458,0.00013798,103980.0,103970.0,0.56061592]
[1750711726103,0.00013798,103980.0,103970.0,0.60849592]
[1750711726564,0.00013798,103980.0,103970.0,0.43701592]
[1750711726781,0.00013798,103980.0,103970.0,0.60841592]
[1750711730948,0.00013798,103980.0,103970.0,0.49849902]
[1750711731191,0.41435905,103980.0,103970.0,0.48844124]
[1750711731411,0.41435905,103980.0,103970.0,0.50767653]
[1750711731629,0.41435905,103980.0,103970.0,0.5076769]
[1750711731848,0.41435905,103980.0,103970.0,0.44832318]
[1750711732065,0.41435905,103980.0,103970.0,0.19836318]
[1750711732276,0.41435905,103980.0,103970.0,0.36936318]
[1750711732498,0.41435905,103980.0,103970.0,0.37898124]
[1750711732706,0.41435905,103980.0,103970.0,0.38859912]
[1750711732919,0.41435905,103980.0,103970.0,0.3982169]
[1750711733135,0.41435905,103980.0,103970.0,0.38859939]
[1750711733357,0.41435905,103980.0,103970.0,0.39821736]
[1750711733557,0.41435905,103980.0,103970.0,0.40783524]
[1750711733774,0.00013798,103980.0,103970.0,0.36936318]
[1750711734014,0.41435905,103980.0,103970.0,0.36944318]
[1750711734241,0.41435905,103980.0,103970.0,0.38867939]
[1750711735589,0.41435905,103980.0,103970.0,0.39829736]
[1750711736053,0.41435905,103980.0,103970.0,0.38867939]
[1750711736261,0.41435905,103980.0,103970.0,0.39829736]
[1750711736436,0.41435905,103980.0,103970.0,0.44091524]
[1750711736692,0.41435905,103980.0,103970.0,0.42167939]
[1750711737119,0.41435905,103980.0,103970.0,0.41206133]
[1750711737330,0.41435905,103980.0,103970.0,0.42167939]
[1750711737551,0.41435905,103980.0,103970.0,0.43129736]
[1750711738002,0.41435905,103980.0,103970.0,0.42167939]
[1750711738258,0.41435905,103980.0,103970.0,0.19836318]
[1750711738481,0.41435905,103980.0,103970.0,0.1766]
[1750711738918,0.47675905,103980.0,103970.0,0.1766]
[1750711739127,0.78615905,103980.0,103970.0,0.006]
[1750711739336,0.75435905,103980.0,103970.0,0.006]
[1750711739764,0.78615905,103980.0,103970.0,0.006]
[1750711743358,6.28078012,103980.0,103970.0,0.006]
[1750711744018,6.38107951,103980.0,103970.0,0.006]
[1750711744259,6.39562036,103980.0,103970.0,0.006]
[1750711744482,6.5189619,103980.0,103970.0,0.006]
[1750711744918,5.59022037,103980.0,103970.0,0.004]
[1750711745142,6.46866251,103980.0,103970.0,0.004]
[1750711745358,5.1135,103970.0,103960.0,0.0998231]
[1750711745585,5.62802046,103970.0,103960.0,0.0998231]
[1750711745790,5.79806046,103970.0,103960.0,0.0998231]
[1750711747086,5.79906046,103970.0,103960.0,0.0998231]
[1750711747304,5.80106046,103970.0,103960.0,0.0998231]
[1750711750763,5.0525,103970.0,103960.0,0.1625231]
[1750711750980,5.46672107,103970.0,103960.0,0.0998231]
[1750711751892,5.46672107,103970.0,103960.0,0.1316231]
[1750711752529,5.46672107,103970.0,103960.0,0.0998231]
[1750711753203,5.0525,103970.0,103960.0,0.0998231]
[1750711753414,5.46672107,103970.0,103960.0,0.0998231]
[1750711755348,5.46672107,103970.0,103960.0,0.1309231]
[1750711755821,5.46672107,103970.0,103960.0,0.0998231]
[1750711760375,6.49888177,103970.0,103960.0,0.0998231]
[1750711760595,6.10769185,103970.0,103960.0,0.0998231]
[1750711761066,6.27649185,103970.0,103960.0,0.0998231]
[1750711761492,6.17619246,103970.0,103960.0,0.0998231]
[1750711761699,6.18698069,103970.0,103960.0,0.0998231]
[1750711765525,5.95094769,103970.0,103960.0,0.0998231]
[1750711765959,5.36792662,103970.0,103960.0,0.0998231]
[1750711766185,5.95070769,103970.0,103960.0,0.0998231]
[1750711766410,5.92767654,103970.0,103960.0,0.0998231]
[1750711766665,5.95071552,103970.0,103960.0,0.0998231]
[1750711768128,5.78215552,103970.0,103960.0,0.0998231]
[1750711768345,5.95115552,103970.0,103960.0,0.0998231]
[1750711769069,0.01378823,103970.0,103960.0,0.36502386]
[1750711769304,0.01378823,103970.0,103960.0,0.4324056]
[1750711769305,0.003,103970.0,103960.0,0.4324056]
[1750711769515,0.343,103970.0,103960.0,0.4612621]
[1750711769976,0.003,103970.0,103960.0,0.47088053]
[1750711770203,0.002,103970.0,103960.0,0.98540099]
[1750711771153,0.35104625,103980.0,103970.0,0.28441653]
[1750711771154,0.00013798,103980.0,103970.0,0.28441653]
[1750711771379,0.00013798,103980.0,103970.0,0.38471592]
[1750711772468,0.00013798,103980.0,103970.0,0.38571592]
[1750711777338,0.00013798,103980.0,103970.0,0.43383592]
[1750711783059,0.00013798,103980.0,103970.0,0.84805699]
[1750711783285,0.00013798,103980.0,103970.0,1.14425699]
[1750711783934,0.00013798,103980.0,103970.0,0.73003592]
[1750711784158,0.00013798,103980.0,103970.0,1.14425699]
[1750711784602,0.00013798,103980.0,103970.0,1.14625699]
[1750711784816,0.00013798,103980.0,103970.0,0.73203592]
[1750711785038,0.00013798,103980.0,103970.0,1.15125699]
[1750711788178,0.00013798,103980.0,103970.0,1.14625699]
[1750711788379,0.00013798,103980.0,103970.0,1.14325699]
[1750711788596,0.00013798,103980.0,103970.0,1.15425699]
[1750711793368,0.00013798,103980.0,103970.0,0.39571592]
[1750711793586,0.00013798,103980.0,103970.0,0.61055592]
[1750711793799,0.00013798,103980.0,103970.0,1.02477699]
[1750711794722,0.19306396,104000.0,103990.0,0.22117444]
[1750711794949,4.604e-05,104000.0,103990.0,0.37935851]
[1750711795573,4.604e-05,104000.0,103990.0,0.37935869]
[1750711795792,4.604e-05,104000.0,103990.0,0.36012618]
[1750711796008,4.604e-05,104000.0,103990.0,0.38035869]
[1750711796215,4.604e-05,104000.0,103990.0,0.38997481]
[1750711796426,4.604e-05,104000.0,103990.0,0.38035869]
[1750711796626,4.604e-05,104000.0,103990.0,0.37074248]
[1750711796838,4.604e-05,104000.0,103990.0,0.38035869]
[1750711797047,4.604e-05,104000.0,103990.0,0.22217481]
[1750711797245,4.604e-05,104000.0,103990.0,0.38997481]
[1750711797661,4.604e-05,104000.0,103990.0,0.39097481]
[1750711798048,0.41426711,104000.0,103990.0,0.40059084]
[1750711798252,4.604e-05,104000.0,103990.0,0.41020668]
[1750711798987,4.604e-05,104000.0,103990.0,0.40059038]
[1750711799185,0.41426711,104000.0,103990.0,0.40059047]
[1750711799398,0.41426711,104000.0,103990.0,0.39097454]
[1750711799597,0.41426711,104000.0,103990.0,0.40059047]
[1750711799827,0.47936711,104000.0,103990.0,0.002]
[1750711800033,0.47936711,104000.0,103990.0,0.16976]
[1750711800254,0.47936711,104000.0,103990.0,0.002]
[1750711800504,5.7331335,104000.0,103990.0,0.002]
[1750711801370,5.7331335,104000.0,103990.0,0.001]
[1750711801807,0.4059,103990.0,103970.0,0.41677893]
[1750711802043,0.41422107,103980.0,103970.0,0.16776]
[1750711802288,0.47692107,103980.0,103970.0,0.36012318]
[1750711802917,0.44622107,103980.0,103970.0,0.36012318]
[1750711803532,0.44622107,103980.0,103970.0,0.36974133]
[1750711803750,0.032,103980.0,103970.0,0.36012318]
[1750711803961,0.44622107,103980.0,103970.0,0.36112318]
[1750711804170,0.44622107,103980.0,103970.0,0.19336318]
[1750711804382,0.44622107,103980.0,103970.0,0.20398133]
[1750711804833,0.44622107,103980.0,103970.0,0.20398124]
[1750711805055,0.44622107,103980.0,103970.0,0.19436318]
[1750711805263,0.032,103980.0,103970.0,0.19436318]
[1750711805484,6.32660938,103980.0,103970.0,0.002]
[1750711805928,6.34964862,103980.0,103970.0,0.002]
[1750711806201,6.40732868,103980.0,103970.0,0.002]
[1750711806430,6.41407966,103980.0,103970.0,0.002]
[1750711806888,6.40732868,103980.0,103970.0,0.002]
[1750711807104,6.40732868,103980.0,103970.0,0.001]
[1750711807320,6.53635382,103980.0,103970.0,0.001]
[1750711807566,5.23190785,103970.0,103960.0,0.0998231]
[1750711807793,5.74642831,103970.0,103960.0,0.0998231]
[1750711808003,5.76943354,103970.0,103960.0,0.0998231]
[1750711808649,5.74642831,103970.0,103960.0,0.0998231]
[1750711812803,5.8467277,103970.0,103960.0,0.0998231]
[1750711813004,5.91422831,103970.0,103960.0,0.0998231]
[1750711813613,6.16064938,103970.0,103960.0,0.0998231]
[1750711813829,6.32844938,103970.0,103960.0,0.0998231]
[1750711814053,6.1835982,103970.0,103960.0,0.0998231]
[1750711814252,5.76937713,103970.0,103960.0,0.0998231]
[1750711814989,5.93717713,103970.0,103960.0,0.0998231]
[1750711815403,6.3513982,103970.0,103960.0,0.0998231]
[1750711815603,5.76937713,103970.0,103960.0,0.0998231]
[1750711815817,5.91422831,103970.0,103960.0,0.0998231]
[1750711816958,5.93715834,103970.0,103960.0,0.0998231]
[1750711817832,5.93915834,103970.0,103960.0,0.0998231]
[1750711818170,5.94115834,103970.0,103960.0,0.0998231]
[1750711818361,5.93915834,103970.0,103960.0,0.0998231]
[1750711818571,5.94115834,103970.0,103960.0,0.0998231]
[1750711819009,5.99115827,103970.0,103960.0,0.0998231]
[1750711819537,5.82335827,103970.0,103960.0,0.0998231]
[1750711819747,5.99115827,103970.0,103960.0,0.0998231]
[1750711819968,6.09145766,103970.0,103960.0,0.0998231]
[1750711820186,5.99115827,103970.0,103960.0,0.0998231]
[1750711820398,5.98915827,103970.0,103960.0,0.0998231]
[1750711820820,5.99315827,103970.0,103960.0,0.0998231]
[1750711821889,5.97315827,103970.0,103960.0,0.0998231]
[1750711822796,6.21957934,103970.0,103960.0,0.05166973]
[1750711823214,6.38733934,103970.0,103960.0,0.05166973]
[1750711823769,6.26957219,103970.0,103960.0,0.05166973]
[1750711823944,6.40188019,103970.0,103960.0,0.05166973]
[1750711825745,6.40188019,103970.0,103960.0,5.05166973]
[1750711826327,6.43080919,103970.0,103960.0,5.05166973]
[1750711827163,6.01658812,103970.0,103960.0,5.05166973]
[1750711828510,6.01664732,103970.0,103960.0,5.05166973]
[1750711829381,6.04538385,103970.0,103960.0,5.05166973]
[1750711831878,6.08538385,103970.0,103960.0,5.05166973]
[1750711832488,6.09212844,103970.0,103960.0,5.05166973]
[1750711832717,6.10171165,103970.0,103960.0,5.05166973]
[1750711833513,6.15846808,103970.0,103960.0,5.05166973]
[1750711833678,6.15846901,103970.0,103960.0,5.05166973]
[1750711833877,6.15846901,103970.0,103960.0,5.15166973]
[1750711834561,6.40493008,103970.0,103960.0,5.15166973]
[1750711834764,6.36661034,103970.0,103960.0,5.15166973]
[1750711835006,6.53429034,103970.0,103960.0,5.15166973]
[1750711835240,6.53430647,103970.0,103960.0,5.15166973]
[1750711836265,6.5343066,103970.0,103960.0,5.15166973]
[1750711836663,6.48903113,103970.0,103960.0,5.15166973]
[1750711836868,6.32135113,103970.0,103960.0,5.15166973]
[1750711837356,6.48903113,103970.0,103960.0,5.15166973]
[1750711837582,6.47755017,103970.0,103960.0,5.15166973]
[1750711838221,6.30987017,103970.0,103960.0,5.15166973]
[1750711838426,6.47755017,103970.0,103960.0,5.15166973]
[1750711838914,6.47751017,103970.0,103960.0,5.15166973]
[1750711839772,6.57780956,103970.0,103960.0,5.10522973]
[1750711839997,6.57780956,103970.0,103960.0,4.1923577]
[1750711839998,6.52560881,103970.0,103960.0,4.1923577]
[1750711840221,7.49112817,103970.0,103960.0,3.12860637]
[1750711840470,7.54212817,103970.0,103960.0,2.8408627]
[1750711840697,7.60818553,103970.0,103960.0,2.83123153]
[1750711840922,7.63280968,103970.0,103960.0,2.44214032]
[1750711841155,7.47786835,103970.0,103960.0,2.42651715]
[1750711841373,6.85805017,103970.0,103960.0,2.42651715]
[1750711841589,6.40817017,103970.0,103960.0,2.41651716]
[1750711841820,6.68052656,103970.0,103960.0,2.24600716]
[1750711842051,6.68752656,103970.0,103960.0,2.23206717]
[1750711842267,6.68752656,103970.0,103960.0,2.1838965]
[1750711842268,6.83582595,103970.0,103960.0,2.1838965]
[1750711842475,6.83682595,103970.0,103960.0,2.1838965]
[1750711842705,6.78482595,103970.0,103960.0,2.13572583]
[1750711842945,6.81559709,103970.0,103960.0,2.13572583]
[1750711843169,6.60691709,103970.0,103960.0,2.13572583]
[1750711843388,6.77143709,103970.0,103960.0,2.13572583]
[1750711843609,6.6710977,103970.0,103960.0,2.13572583]
[1750711843820,6.5697977,103970.0,103960.0,2.13572583]
[1750711844486,6.6197977,103970.0,103960.0,2.13572583]
[1750711845311,6.5697977,103970.0,103960.0,2.13572583]
[1750711846195,5.75713578,103970.0,103960.0,2.13572583]
[1750711846416,5.68298128,103970.0,103960.0,2.13572583]
[1750711846627,5.74752004,103970.0,103960.0,2.13572583]
[1750711846864,5.73297919,103970.0,103960.0,2.13572583]
[1750711847087,6.14091786,103970.0,103960.0,2.13572583]
[1750711847296,6.13491786,103970.0,103960.0,2.13572583]
[1750711847787,6.20421786,103970.0,103960.0,2.13572583]
[1750711848032,6.20421786,103970.0,103960.0,1.95184257]
[1750711848033,6.66843886,103970.0,103960.0,1.95184257]
[1750711848268,6.7273103,103970.0,103960.0,1.34203375]
[1750711848510,6.861463,103970.0,103960.0,1.22955257]
[1750711848748,6.84030992,103970.0,103960.0,1.20695257]
[1750711848980,6.84030992,103970.0,103960.0,0.76258844]
[1750711848981,6.82107475,103970.0,103960.0,0.76258844]
[1750711849220,7.02887196,103970.0,103960.0,0.70480115]
[1750711849463,7.02887075,103970.0,103960.0,0.70480115]
[1750711849698,7.02887075,103970.0,103960.0,0.64701386]
[1750711849935,7.02887075,103970.0,103960.0,0.59315778]
[1750711850166,6.81683329,103970.0,103960.0,0.08358157]
[1750711850389,6.81683329,103970.0,103960.0,0.03630157]
[1750711850612,6.81683329,103970.0,103960.0,0.00963121]
[1750711850896,6.81683329,103970.0,103950.0,0.0002]
[1750711850897,0.46415912,103960.0,103950.0,0.0002]
[1750711851122,6.34592655,103960.0,103950.0,0.0002]
[1750711852034,6.42046132,103960.0,103950.0,0.0002]
[1750711852304,6.42350148,103960.0,103950.0,0.0002]
[1750711852548,6.42550148,103960.0,103950.0,0.0002]
[1750711852774,6.42548935,103960.0,103950.0,0.0002]
[1750711852999,6.48315189,103960.0,103950.0,0.0002]
[1750711853231,6.49277069,103960.0,103950.0,0.0002]
[1750711853454,6.42548935,103960.0,103950.0,0.0002]
[1750711853689,6.43510898,103960.0,103950.0,0.0002]
[1750711853914,6.44473102,103960.0,103950.0,0.0002]
[1750711854134,6.42548369,103960.0,103950.0,0.0002]
[1750711854353,6.77682856,103960.0,103950.0,0.0002]
[1750711854618,6.7287851,103960.0,103950.0,0.0002]
[1750711855068,6.71916462,103960.0,103950.0,0.0002]
[1750711855301,6.54603027,103960.0,103950.0,0.0002]
[1750711855527,6.50753948,103960.0,103950.0,0.0002]
[1750711855756,6.45311938,103960.0,103950.0,0.0002]
[1750711855984,6.46273818,103960.0,103950.0,0.0002]
[1750711856228,6.46273226,103960.0,103950.0,0.0002]
[1750711856453,6.47235134,103960.0,103950.0,0.0002]
[1750711856679,6.46273226,103960.0,103950.0,0.0002]
[1750711857633,6.47235125,103960.0,103950.0,0.0002]
[1750711857863,6.65511459,103960.0,103950.0,0.0002]
[1750711858082,6.65511321,103960.0,103950.0,0.0002]
[1750711858303,4.89830785,103930.0,103920.0,0.07720082]
[1750711858529,5.70021747,103930.0,103920.0,0.07720082]
[1750711859010,5.82945686,103930.0,103920.0,0.10950082]
[1750711860399,5.73115747,103930.0,103920.0,0.14120082]
[1750711860625,5.73115747,103930.0,103920.0,0.10120082]
[1750711860861,5.73115747,103930.0,103920.0,0.064]
[1750711861370,5.46675754,103930.0,103920.0,0.06391149]
[1750711861614,4.69799562,103930.0,103920.0,0.47813256]
[1750711861880,4.714247,103930.0,103920.0,0.55513338]
[1750711862168,5.26328319,103930.0,103920.0,0.06391149]
[1750711862403,5.26328319,103930.0,103920.0,0.06591149]
[1750711862404,5.1619838,103930.0,103920.0,0.06591149]
[1750711862639,5.1619838,103930.0,103920.0,0.06391149]
[1750711862879,5.1619838,103930.0,103920.0,0.06791149]
[1750711863103,6.00496679,103930.0,103920.0,0.004]
[1750711863318,4.89830785,103910.0,103900.0,0.03051162]
[1750711863793,4.89830785,103910.0,103900.0,0.00011162]
[1750711863794,5.60390247,103910.0,103900.0,0.00011162]
[1750711864530,5.6539024,103910.0,103900.0,0.00011162]
[1750711864757,5.6539024,103910.0,103900.0,0.00057142]
[1750711864758,5.75420179,103910.0,103900.0,0.00057142]
[1750711865773,5.75720179,103910.0,103900.0,0.00057142]
[1750711866001,5.6569024,103910.0,103900.0,0.00057142]
[1750711866468,5.73917638,103910.0,103900.0,0.00057142]
[1750711866853,5.73917638,103910.0,103900.0,0.03187142]
[1750711867269,5.76218979,103910.0,103900.0,0.03187142]
[1750711867835,5.76318979,103910.0,103900.0,0.03187142]
[1750711868058,0.34,103900.0,103890.0,0.0318]
[1750711868276,5.5035956,103900.0,103880.0,0.00413798]
[1750711868497,5.17116724,103890.0,103880.0,0.03503798]
[1750711869139,5.20011424,103890.0,103880.0,0.03503798]
[1750711869799,5.20011424,103890.0,103880.0,0.03703798]
[1750711871082,5.20011424,103890.0,103880.0,0.03903798]
[1750711871290,5.74266577,103890.0,103880.0,0.06923798]
[1750711871500,5.84296516,103890.0,103880.0,0.06923798]
[1750711871917,5.84296516,103890.0,103880.0,0.06523798]
[1750711872339,5.84396516,103890.0,103880.0,0.00413798]
[1750711872756,5.57833546,103890.0,103880.0,0.00413798]
[1750711872969,5.678334,103890.0,103880.0,0.00413798]
[1750711873177,5.648234,103890.0,103880.0,0.00413798]
[1750711873385,5.12870479,103890.0,103880.0,0.00413798]
[1750711873598,5.648234,103890.0,103880.0,0.00413798]
[1750711874220,5.74853339,103890.0,103880.0,0.00413798]
[1750711874656,5.29030418,103890.0,103880.0,0.00413798]
[1750711874866,5.82437424,103890.0,103880.0,0.00413798]
[1750711875333,5.77437424,103890.0,103880.0,0.00413798]
[1750711875550,5.82437424,103890.0,103880.0,0.00413798]
[1750711875966,5.76307424,103890.0,103880.0,0.00413798]
[1750711876213,5.66277485,103890.0,103880.0,0.00413798]
[1750711877071,5.61277485,103890.0,103880.0,0.00413798]
[1750711877275,5.49021485,103890.0,103880.0,0.00413798]
[1750711877525,5.71365485,103890.0,103880.0,0.00413798]
[1750711877729,5.81395424,103890.0,103880.0,0.00413798]
[1750711878201,4.85614486,103890.0,103880.0,0.06893798]
[1750711878426,5.02974486,103890.0,103880.0,0.06893798]
[1750711878850,5.56381492,103890.0,103880.0,0.00413798]
[1750711879742,5.56369492,103890.0,103880.0,0.00413798]
[1750711879930,5.59579492,103890.0,103880.0,0.00413798]
[1750711880165,5.69609431,103890.0,103880.0,0.00413798]
[1750711880390,5.66399431,103890.0,103880.0,0.00413798]
[1750711880605,5.69589431,103890.0,103880.0,0.00413798]
[1750711880810,5.72789431,103890.0,103880.0,0.00413798]
[1750711881021,5.66399431,103890.0,103880.0,0.00413798]
[1750711881265,5.56369492,103890.0,103880.0,0.00413798]
[1750711881503,5.04416571,103890.0,103880.0,0.00413798]
[1750711881729,5.56369492,103890.0,103880.0,0.00413798]
[1750711881927,5.62949492,103890.0,103880.0,0.00413798]
[1750711882279,0.35454085,103880.0,103870.0,0.0002]
[1750711882457,5.22240721,103870.0,103860.0,0.065]
[1750711882673,4.99067824,103870.0,103860.0,0.06513802]
[1750711882880,5.01365321,103870.0,103860.0,0.07402013]